bitfinex/quotes_SOLUSD_20260306
["timestamp","ask_amount","ask_price","bid_price","bid_amount"]
[1772808614425,9.45147262,84.42,84.368,0.50674266]
[1772808614618,0.28432314,84.438,84.368,0.50674266]
[1772808614851,9.45147262,84.38,84.34,0.60674266]
[1772808615046,0.28432314,84.408,84.341,0.50674266]
[1772808615347,0.28432314,84.399,84.341,0.50674266]
[1772808615533,3.69383402,84.416,84.341,0.50674266]
[1772808615534,9.45147262,84.38,84.341,0.50674266]
[1772808615843,9.45147262,84.38,84.34,0.1]
[1772808616040,9.45147262,84.39,84.341,0.50674266]
[1772808616344,9.45147262,84.38,84.34,0.1]
[1772808616522,0.28432314,84.394,84.34,0.1]
[1772808616523,9.45147262,84.37,84.34,0.1]
[1772808616724,0.28432314,84.394,84.34,0.1]
[1772808616935,9.45147262,84.38,84.34,0.1]
[1772808617446,9.45147262,84.37,84.34,0.1]
[1772808617741,9.45147262,84.38,84.34,0.1]
[1772808617927,9.45147262,84.39,84.34,0.60674266]
[1772808618123,9.45147262,84.38,84.34,0.1]
[1772808618324,9.45147262,84.37,84.34,0.1]
[1772808618537,0.28432314,84.379,84.34,0.1]
[1772808618845,9.60547175,84.435,84.341,0.50674266]
[1772808619143,9.45147262,84.39,84.341,0.50674266]
[1772808619520,0.28432314,84.399,84.341,0.50674266]
[1772808619720,9.45147262,84.4,84.343,0.50674266]
[1772808619924,21.05545958,84.4,84.343,0.50674266]
[1772808620122,11.60398696,84.4,84.343,0.50674266]
[1772808620346,9.45147262,84.38,84.342,41.49771169]
[1772808620766,21.47479516,84.4,84.343,0.50674266]
[1772808621056,9.45147262,84.38,84.343,0.50674266]
[1772808621226,9.45147262,84.39,84.343,0.50674266]
[1772808621423,11.84632968,84.415,84.343,0.50674266]
[1772808621424,9.45147262,84.41,84.344,0.50674266]
[1772808621831,9.45147262,84.4,84.346,0.50674266]
[1772808622034,9.45147262,84.41,84.347,0.50674266]
[1772808622234,9.45147262,84.4,84.347,0.50674266]
[1772808622433,9.45147262,84.39,84.347,0.50674266]
[1772808622631,9.45147262,84.38,84.345,11.85606734]
[1772808622836,9.45147262,84.37,84.345,11.85606734]
[1772808623129,0.28432314,84.396,84.345,11.85606734]
[1772808623130,9.45147262,84.38,84.345,12.36281]
[1772808623337,4.82477569,84.406,84.345,12.36281]
[1772808623338,0.28432314,84.389,84.346,0.50674266]
[1772808623535,11.69841194,84.41,84.346,0.50674266]
[1772808623851,9.45147262,84.39,84.347,41.49525175]
[1772808624449,9.45147262,84.39,84.348,0.50674266]
[1772808624644,41.46673774,84.405,84.348,0.50674266]
[1772808624849,9.45147262,84.38,84.348,0.50674266]
[1772808625038,9.45147262,84.39,84.348,0.50674266]
[1772808625236,0.14216157,84.399,84.348,0.50674266]
[1772808625444,41.46673774,84.405,84.348,0.50674266]
[1772808625445,9.45147262,84.39,84.348,0.50674266]
[1772808625639,9.45147262,84.38,84.347,11.85578621]
[1772808625838,9.45147262,84.37,84.34,0.1]
[1772808626133,9.45147262,84.39,84.341,0.50674266]
[1772808626348,9.45147262,84.4,84.341,0.50674266]
[1772808626651,9.45147262,84.39,84.341,0.50674266]
[1772808627355,9.45147262,84.4,84.341,0.50674266]
[1772808627738,9.45147262,84.39,84.341,0.50674266]
[1772808628144,9.45147262,84.38,84.343,0.50674266]
[1772808628345,9.45147262,84.39,84.343,0.50674266]
[1772808628656,41.46772033,84.403,84.34,0.1]
[1772808628657,9.45147262,84.36,84.34,0.1]
[1772808628957,9.45147262,84.38,84.341,11.85662963]
[1772808629156,0.28432314,84.396,84.341,11.85662963]
[1772808629157,9.45147262,84.37,84.341,11.85662963]
[1772808629357,9.45147262,84.38,84.341,11.85662963]
[1772808629551,9.45147262,84.37,84.341,11.85662963]
[1772808629745,3.69383402,84.4,84.34,0.1]
[1772808629746,9.45147262,84.36,84.34,0.1]
[1772808630044,9.45147262,84.35,84.321,11.85944189]
[1772808630248,0.28432314,84.366,84.31,11.8609892]
[1772808630249,9.45147262,84.34,84.31,11.8609892]
[1772808630452,11.8555051,84.349,84.31,11.8609892]
[1772808631166,11.8555051,84.349,84.263,0.50674266]
[1772808631167,9.45147262,84.33,84.263,0.50674266]
[1772808631371,3.69383402,84.341,84.274,0.50674266]
[1772808631673,9.45147262,84.32,84.276,0.50674266]
[1772808631964,3.69383402,84.341,84.276,0.50674266]
[1772808631965,9.45147262,84.31,84.276,0.50674266]
[1772808632167,11.85972319,84.319,84.278,0.50674266]
[1772808632374,0.28432314,84.336,84.278,0.50674266]
[1772808632375,21.30975172,84.33,84.278,0.50674266]
[1772808632551,9.45147262,84.34,84.278,0.50674266]
[1772808632753,0.28432314,84.356,84.278,0.50674266]
[1772808632951,9.45147262,84.32,84.278,0.50674266]
[1772808633164,0.28432314,84.346,84.278,0.50674266]
[1772808633462,9.45147262,84.32,84.278,0.50674266]
[1772808633671,9.60547175,84.39,84.278,0.50674266]
[1772808633847,4.82477569,84.385,84.279,0.50674266]
[1772808634045,9.45147262,84.35,84.279,0.50674266]
[1772808634266,9.45147262,84.35,84.104,32.59329078]
[1772808634267,9.45147262,84.36,84.284,0.50674266]
[1772808634472,59.24661998,84.393,84.284,0.50674266]
[1772808634473,9.45147262,84.37,84.285,0.50674266]
[1772808634670,9.45147262,84.36,84.285,0.50674266]
[1772808635051,9.45147262,84.35,84.285,0.50674266]
[1772808635370,0.28432314,84.359,84.285,0.50674266]
[1772808635569,9.45147262,84.36,84.285,0.50674266]
[1772808635772,9.45147262,84.35,84.285,0.50674266]
[1772808636147,41.48246476,84.373,84.29,0.50674266]
[1772808636353,9.45147262,84.36,84.291,0.50674266]
[1772808636882,9.45147262,84.37,84.291,0.50674266]
[1772808637066,9.45147262,84.35,84.291,0.50674266]
[1772808637268,9.45147262,84.34,84.291,0.50674266]
[1772808637563,9.45147262,84.34,84.286,100.84711576]
[1772808637564,0.28432314,84.356,84.286,11.86436656]
[1772808637869,9.45147262,84.36,84.279,0.50674266]
[1772808637870,9.45147262,84.32,84.28,0.50674266]
[1772808638171,9.45147262,84.36,84.274,11.86603851]
[1772808638172,11.85972319,84.319,84.274,11.86603851]
[1772808638472,9.45147262,84.33,84.275,0.50674266]
[1772808638767,9.45147262,84.34,84.275,0.50674266]
[1772808638960,41.49279209,84.352,84.275,0.50674266]
[1772808639156,41.49279209,84.352,84.276,0.50674266]
[1772808639157,11.85508345,84.352,84.276,0.50674266]
[1772808639375,9.45147262,84.35,84.276,0.50674266]
[1772808639574,11.85508345,84.352,84.276,0.50674266]
[1772808639758,9.45147262,84.35,84.276,0.50674266]
[1772808640072,11.85508345,84.352,84.276,0.50674266]
[1772808640270,0.28432314,84.366,84.275,0.28432314]
[1772808640271,9.45147262,84.35,84.279,0.50674266]
[1772808641362,9.45147262,84.34,84.279,0.50674266]
[1772808641564,9.45147262,84.35,84.279,0.50674266]
[1772808641756,9.45147262,84.34,84.279,0.50674266]
[1772808642153,11.85255422,84.37,84.285,3.69383402]
[1772808642372,9.45147262,84.36,84.287,0.50674266]
[1772808643152,9.45147262,84.35,84.287,0.50674266]
[1772808643473,9.45147262,84.36,84.287,0.50674266]
[1772808643979,21.30270331,84.38,84.289,0.50674266]
[1772808644152,21.30270331,84.38,84.294,3.69383402]
[1772808644356,50.93057721,84.38,84.296,0.50674266]
[1772808644557,11.85123069,84.38,84.296,0.50674266]
[1772808644782,11.85123069,84.38,84.299,0.50674266]
[1772808644963,11.85048108,84.385,84.302,0.50674266]
[1772808645166,12.69400492,84.459,84.301,0.28432314]
[1772808645167,9.45147262,84.44,84.312,4.20057668]
[1772808645377,9.45147262,84.44,84.303,1.1861974]
[1772808645378,9.45147262,84.42,84.326,0.50674266]
[1772808645577,9.45147262,84.43,84.336,0.50674266]
[1772808645778,11.84672259,84.412,84.336,0.50674266]
[1772808646077,20.75531175,84.405,84.336,0.50674266]
[1772808646280,20.75531175,84.405,84.332,0.28432314]
[1772808646281,21.2998368,84.4,84.341,0.50674266]
[1772808646459,9.45147262,84.38,84.342,0.50674266]
[1772808647362,0.28432314,84.399,84.337,12.36393463]
[1772808647680,9.45147262,84.38,84.338,0.50674266]
[1772808648064,11.84836418,84.4,84.338,0.50674266]
[1772808648277,20.75524781,84.405,84.341,0.50674266]
[1772808648479,11.84777972,84.404,84.341,0.50674266]
[1772808648682,9.45147262,84.38,84.341,0.50674266]
[1772808648883,9.45147262,84.38,84.34,0.50674266]
[1772808649591,41.46722903,84.404,84.34,0.50674266]
[1772808649592,11.84777972,84.404,84.34,0.50674266]
[1772808649968,9.45147262,84.4,84.34,0.50674266]
[1772808650383,11.84848161,84.399,84.342,0.50674266]
[1772808650586,9.45147262,84.38,84.342,0.50674266]
[1772808650966,41.46968565,84.399,84.342,0.50674266]
[1772808650967,9.45147262,84.37,84.342,0.50674266]
[1772808651186,9.45147262,84.38,84.342,0.50674266]
[1772808652470,11.85071225,84.384,84.344,0.50674266]
[1772808653089,9.45147262,84.38,84.344,0.50674266]
[1772808653668,9.45147262,84.39,84.344,0.50674266]
[1772808653983,8.90754485,84.405,84.344,0.50674266]
[1772808653984,9.45147262,84.38,84.344,0.50674266]
[1772808654184,11.84988564,84.389,84.344,0.50674266]
[1772808654395,11.84988564,84.389,84.287,4.82477569]
[1772808654396,11.84777972,84.404,84.346,0.50674266]
[1772808654690,8.90754485,84.405,84.346,0.50674266]
[1772808654691,8.90754485,84.405,84.347,0.50674266]
[1772808654890,11.84286881,84.439,84.35,0.50674266]
[1772808655083,7.32283192,84.446,84.356,4.82477569]
[1772808655390,7.32283192,84.446,84.348,3.69383402]
[1772808655391,11.84202735,84.445,84.368,0.50674266]
[1772808655686,7.32283192,84.446,84.368,0.50674266]
[1772808655893,9.45210414,84.44,84.368,0.50674266]
[1772808656493,11.84202735,84.445,84.373,0.50674266]
[1772808656680,9.45210414,84.43,84.374,0.50674266]
[1772808656989,7.32283192,84.446,84.374,0.50674266]
[1772808657192,11.84202735,84.445,84.374,0.50674266]
[1772808658187,9.65210414,84.48,84.374,0.50674266]
[1772808658188,9.45210414,84.47,84.378,3.69383402]
[1772808658389,0.2,84.48,84.398,4.82477569]
[1772808658593,0.2,84.48,84.395,100.71686709]
[1772808658594,12.03715704,84.48,84.409,0.50674266]
[1772808658775,0.2,84.48,84.409,0.50674266]
[1772808659274,11.83726133,84.479,84.409,0.50674266]
[1772808659488,9.45210414,84.5,84.419,0.50674266]
[1772808659687,9.45210414,84.49,84.419,0.50674266]
[1772808659893,9.45210414,84.48,84.419,0.50674266]
[1772808660397,9.45210414,84.48,84.401,0.28432314]
[1772808660398,11.83371973,84.505,84.423,3.69383402]
[1772808660570,11.83371973,84.505,84.425,0.50674266]
[1772808660771,9.45210414,84.5,84.425,0.50674266]
[1772808660987,9.45210414,84.48,84.425,0.50674266]
[1772808661287,9.45210414,84.46,84.413,0.50674266]
[1772808661669,9.45210414,84.46,84.39,41.4741083]
[1772808661670,9.45210414,84.44,84.391,0.50674266]
[1772808662695,11.84286881,84.439,84.393,0.50674266]
[1772808662985,59.19190577,84.472,84.393,0.50674266]
[1772808662986,9.45210414,84.46,84.394,0.50674266]
[1772808663188,9.45210414,84.46,84.393,0.28432314]
[1772808663189,9.45210414,84.48,84.397,0.50674266]
[1772808663399,22.34610906,84.54,84.397,0.50674266]
[1772808663400,9.45210414,84.49,84.397,0.50674266]
[1772808663594,9.65210414,84.54,84.397,0.50674266]
[1772808663595,9.45210414,84.47,84.397,0.50674266]
[1772808663772,9.45210414,84.45,84.397,0.50674266]
[1772808664593,9.45210414,84.48,84.403,0.50674266]
[1772808664893,9.45210414,84.47,84.403,0.50674266]
[1772808665100,9.45210414,84.46,84.403,0.50674266]
[1772808665276,0.28432314,84.479,84.403,0.50674266]
[1772808665277,9.45210414,84.45,84.403,0.50674266]
[1772808665593,9.45210414,84.46,84.403,0.50674266]
[1772808665910,7.3239405,84.485,84.404,1.46910111]
[1772808666076,11.83656076,84.484,84.406,0.50674266]
[1772808666278,19.16047549,84.485,84.408,0.50674266]
[1772808666587,19.16047549,84.485,84.412,0.50674266]
[1772808666791,19.16047549,84.485,84.41,41.46428147]
[1772808666792,9.45210414,84.47,84.414,0.50674266]
[1772808666979,48.75152715,84.485,84.414,0.50674266]
[1772808666980,9.45210414,84.48,84.414,0.50674266]
[1772808667573,7.3239405,84.485,84.415,0.50674266]
[1772808667996,19.16037026,84.485,84.415,0.50674266]
[1772808668172,11.83642976,84.485,84.415,0.50674266]
[1772808668505,11.82886005,84.539,84.428,4.82477569]
[1772808668691,0.2,84.54,84.45,3.69383402]
[1772808668871,0.2,84.54,84.46,0.50674266]
[1772808669073,0.2,84.54,84.465,0.50674266]
[1772808669477,9.45210414,84.53,84.465,0.50674266]
[1772808669677,12.02875155,84.54,84.457,18.19408607]
[1772808669678,9.45210414,84.5,84.457,18.19408607]
[1772808669873,9.45210414,84.48,84.457,18.19408607]
[1772808670074,0.28432314,84.506,84.457,18.19408607]
[1772808670281,0.28432314,84.506,84.363,1.18535376]
[1772808670282,9.45210414,84.47,84.365,0.50674266]
[1772808670577,9.45210414,84.46,84.369,0.50674266]
[1772808670885,0.28432314,84.483,84.37,0.50674266]
[1772808671084,9.45210414,84.47,84.374,0.50674266]
[1772808671280,9.45210414,84.48,84.376,0.50674266]
[1772808671487,9.45210414,84.47,84.381,0.50674266]
[1772808671687,9.45210414,84.47,84.381,0.64890423]
[1772808671882,41.42747232,84.485,84.392,0.50674266]
[1772808671883,11.83642066,84.485,84.392,0.50674266]
[1772808672087,11.83642066,84.485,84.395,0.50674266]
[1772808672381,11.83642066,84.485,84.383,4.82477569]
[1772808672382,11.8330592,84.509,84.413,0.50674266]
[1772808672585,11.8330592,84.509,84.412,0.28432314]
[1772808672586,11.8330592,84.509,84.42,0.50674266]
[1772808672883,11.8330592,84.509,84.425,0.50674266]
[1772808673086,11.82969964,84.533,84.437,0.50674266]
[1772808673284,0.2,84.54,84.453,0.50674266]
[1772808673598,0.2,84.54,84.444,3.69383402]
[1772808673599,41.40101018,84.539,84.456,0.50674266]
[1772808673897,9.45210414,84.53,84.456,0.50674266]
[1772808674086,11.82886005,84.539,84.458,0.50674266]
[1772808674287,9.45210414,84.5,84.46,0.50674266]
[1772808674598,9.45210414,84.5,84.423,3.69383402]
[1772808674599,9.45210414,84.5,84.462,0.50674266]
[1772808674900,9.45210414,84.5,84.461,12.3465267]
[1772808678786,9.45210414,84.55,84.489,0.50674266]
[1772808678994,9.45210414,84.54,84.489,0.50674266]
[1772808679682,41.39513428,84.551,84.489,0.50674266]
[1772808679894,41.39513428,84.551,84.485,0.28432314]
[1772808679895,1e-08,84.552,84.49,0.50674266]
[1772808680489,1e-08,84.552,84.501,0.50674266]
[1772808680688,1e-08,84.552,84.507,0.50674266]
[1772808681089,1e-08,84.552,84.492,0.50674266]
[1772808681090,9.45210414,84.53,84.492,0.50674266]
[1772808681412,9.45210414,84.55,84.457,0.50674266]
[1772808681591,1e-08,84.552,84.46,0.50674266]
[1772808681796,9.45210414,84.54,84.46,0.50674266]
[1772808682405,9.45210414,84.53,84.46,0.50674266]
[1772808682702,1e-08,84.552,84.42,1.18455342]
[1772808682703,9.45210414,84.51,84.462,0.50674266]
[1772808682905,11.83165915,84.519,84.462,0.50674266]
[1772808683207,11.83165915,84.519,84.465,0.50674266]
[1772808683387,9.45210414,84.51,84.465,0.50674266]
[1772808683588,9.45210414,84.6,84.465,0.50674266]
[1772808683805,0.28432314,84.55,84.466,0.50674266]
[1772808684114,11.82718122,84.551,84.466,0.50674266]
[1772808684115,9.45210414,84.53,84.466,0.50674266]
[1772808684415,9.45210414,84.54,84.466,0.50674266]
[1772808684593,9.45210414,84.53,84.466,0.50674266]
[1772808684906,41.40590802,84.529,84.471,0.50674266]
[1772808685207,1e-08,84.552,84.472,0.50674266]
[1772808685398,41.39516244,84.551,84.472,0.50674266]
[1772808685711,11.82720938,84.551,84.472,0.50674266]
[1772808685899,1e-08,84.552,84.472,0.50674266]
[1772808686094,11.82716062,84.552,84.475,0.50674266]
[1772808686309,9.45210414,84.53,84.475,0.50674266]
[1772808686520,9.45210414,84.51,84.451,0.50674266]
[1772808686692,9.45210414,84.49,84.422,0.50674266]
[1772808686893,29.58965072,84.489,84.424,0.50674266]
[1772808687106,29.58965072,84.489,84.423,11.84511329]
[1772808687107,9.45210414,84.48,84.423,41.45789653]
[1772808687414,9.45210414,84.48,84.424,0.50674266]
[1772808687909,9.45210414,84.47,84.424,0.50674266]
[1772808688596,0.28432314,84.488,84.424,0.50674266]
[1772808688597,9.45210414,84.48,84.424,0.50674266]
[1772808688794,11.8386627,84.469,84.425,11.84483269]
[1772808688988,0.28432314,84.488,84.425,11.84483269]
[1772808688989,11.83726133,84.479,84.426,0.50674266]
[1772808689403,11.83726133,84.479,84.427,0.50674266]
[1772808689608,9.45210414,84.47,84.427,0.50674266]
[1772808690601,9.45210414,84.47,84.425,11.84483269]
[1772808690810,9.45210414,84.47,84.403,59.23913016]
[1772808690811,11.84146644,84.449,84.392,0.50674266]
[1772808691120,9.45210414,84.47,84.42,41.96611247]
[1772808691413,9.45210414,84.47,84.42,12.35227689]
[1772808691615,9.45210414,84.46,84.42,12.35227689]
[1772808691795,9.45210414,84.45,84.409,0.50674266]
[1772808691996,9.45210414,84.45,84.413,11.8465052]
[1772808692399,9.45210414,84.45,84.384,0.50674266]
[1772808692599,9.45210414,84.46,84.384,0.50674266]
[1772808692801,9.45210414,84.45,84.384,0.50674266]
[1772808693024,9.45210414,84.44,84.389,0.50674266]
[1772808693220,9.45210414,84.43,84.389,0.50674266]
[1772808693408,9.45210414,84.43,84.273,47.46444442]
[1772808693409,0.28432314,84.448,84.365,11.85321952]
[1772808693410,9.45210414,84.4,84.365,11.85321952]
[1772808693611,9.45210414,84.41,84.365,11.85321952]
[1772808693806,0.28432314,84.419,84.365,11.85321952]
[1772808694011,9.45210414,84.4,84.365,11.85321952]
[1772808694209,9.45210414,84.41,84.365,11.85321952]
[1772808694447,9.45210414,84.4,84.362,0.50674266]
[1772808694719,9.45210414,84.41,84.363,11.85353768]
[1772808695221,9.45210414,84.4,84.363,11.85353768]
[1772808695426,11.84707791,84.409,84.357,9.88723523]
[1772808695427,9.45210414,84.39,84.357,9.88723523]
[1772808695629,0.28432314,84.399,84.357,9.88723523]
[1772808695630,9.45210414,84.38,84.357,9.88723523]
[1772808695808,0.28432314,84.399,84.357,22.24835535]
[1772808696320,41.4647727,84.409,84.358,0.50674266]
[1772808696520,9.45210414,84.4,84.358,0.50674266]
[1772808696725,0.28432314,84.408,84.357,9.88723523]
[1772808696726,9.45210414,84.38,84.357,9.88723523]
[1772808697023,9.45210414,84.38,84.336,0.50674266]
[1772808697024,11.85129001,84.379,84.336,0.50674266]
[1772808697424,41.47951504,84.379,84.336,0.50674266]
[1772808698409,11.85129001,84.379,84.336,0.50674266]
[1772808698610,11.85036361,84.386,84.336,0.50674266]
[1772808699328,9.45210414,84.38,84.339,0.50674266]
[1772808699709,9.45210414,84.39,84.339,0.50674266]
[1772808700427,9.45210414,84.38,84.339,0.50674266]
[1772808701425,11.85129001,84.379,84.34,11.85677021]
[1772808701633,11.85129001,84.379,84.341,0.50674266]
[1772808701830,9.45210414,84.4,84.341,0.50674266]
[1772808702437,0.28432314,84.399,84.341,0.50674266]
[1772808702914,9.45210414,84.39,84.341,0.50674266]
[1772808703426,9.45210414,84.39,84.327,3.69383402]
[1772808703427,9.45210414,84.41,84.347,0.50674266]
[1772808703629,9.45210414,84.4,84.347,0.50674266]
[1772808704418,3.69383402,84.432,84.347,0.50674266]
[1772808704419,9.45210414,84.39,84.347,0.50674266]
[1772808704818,0.28432314,84.399,84.347,0.50674266]
[1772808705022,9.45210414,84.39,84.347,0.50674266]
[1772808705218,11.85129001,84.379,84.336,11.85733257]
[1772808705433,11.85129001,84.379,84.337,0.50674266]
[1772808706038,9.45210414,84.37,84.337,0.50674266]
[1772808706343,9.45210414,84.37,84.336,11.85733257]
[1772808706725,0.28432314,84.378,84.336,11.85733257]
[1772808706924,41.47951504,84.379,84.337,0.50674266]
[1772808707133,9.45210414,84.36,84.325,11.85887933]
[1772808707329,11.85269471,84.369,84.326,0.50674266]
[1772808708540,9.45210414,84.38,84.326,0.50674266]
[1772808708541,11.85188416,84.375,84.326,0.50674266]
[1772808708742,11.84992794,84.389,84.326,0.50674266]
[1772808709330,0.28432314,84.398,84.329,0.50674266]
[1772808709650,9.45210414,84.41,84.331,0.50674266]
[1772808709830,0.28432314,84.409,84.331,0.50674266]
[1772808710146,9.45210414,84.43,84.332,0.50674266]
[1772808710326,9.45210414,84.44,84.339,0.50674266]
[1772808710521,9.45210414,84.44,84.341,0.50674266]
[1772808710723,0.28432314,84.437,84.341,0.50674266]
[1772808710924,0.28432314,84.437,84.203,32.59329078]
[1772808710925,9.45210414,84.46,84.355,0.50674266]
[1772808711123,53.26,84.474,84.354,3.69383402]
[1772808711124,41.43531946,84.469,84.37,0.50674266]
[1772808711335,65.09809963,84.474,84.377,0.50674266]
[1772808711526,11.83809963,84.474,84.378,0.50674266]
[1772808711847,9.45210414,84.44,84.378,0.50674266]
[1772808712049,3.69383402,84.438,84.371,41.4834481]
[1772808712234,9.45210414,84.42,84.372,0.50674266]
[1772808712624,9.45210414,84.43,84.372,0.50674266]
[1772808713043,7.30636902,84.473,84.372,0.50674266]
[1772808713325,11.84707791,84.409,84.374,0.50674266]
[1772808713759,9.45210414,84.4,84.356,15.28775251]
[1772808714043,41.4647727,84.409,84.357,11.85438078]
[1772808714044,9.45210414,84.39,84.357,11.85438078]
[1772808714247,9.45210414,84.42,84.359,0.50674266]
[1772808714546,9.45177519,84.41,84.359,0.50674266]
[1772808715026,9.45177519,84.43,84.359,0.50674266]
[1772808715227,9.45177519,84.42,84.362,0.50674266]
[1772808715443,9.45177519,84.41,84.364,0.50674266]
[1772808716127,9.45177519,84.4,84.364,0.50674266]
[1772808716326,9.45177519,84.41,84.364,0.50674266]
[1772808716965,11.84567455,84.419,84.364,0.50674266]
[1772808717140,9.45177519,84.41,84.364,0.50674266]
[1772808717848,9.45177519,84.41,84.262,47.47096175]
[1772808717849,29.61077169,84.429,84.366,0.50674266]
[1772808718054,9.45177519,84.42,84.366,0.50674266]
[1772808718627,3.69383402,84.426,84.366,0.50674266]
[1772808718628,9.45177519,84.41,84.366,0.50674266]
[1772808719234,9.45177519,84.4,84.365,11.85325668]
[1772808719546,9.45177519,84.39,84.345,0.50674266]
[1772808719732,9.45177519,84.39,84.347,0.50674266]
[1772808719927,11.84988564,84.389,84.349,0.50674266]
[1772808720237,11.84908322,84.395,84.349,0.50674266]
[1772808720534,11.84908322,84.395,84.348,41.49475979]
[1772808720535,9.45177519,84.38,84.348,41.49475979]
[1772808720739,9.45177519,84.37,84.325,0.50674266]
[1772808720938,9.45177519,84.38,84.325,0.50674266]
[1772808721230,4.82477569,84.406,84.325,0.50674266]
[1772808721231,11.84707791,84.409,84.325,0.50674266]
[1772808721429,11.84707791,84.409,84.327,0.50674266]
[1772808721654,41.4647727,84.409,84.327,0.50674266]
[1772808721845,0.28432314,84.417,84.332,0.50674266]
[1772808722042,9.45177519,84.4,84.333,0.50674266]
[1772808722543,0.14216157,84.409,84.333,0.50674266]
[1772808722732,9.45177519,84.39,84.333,0.50674266]
[1772808723230,0.28432314,84.399,84.333,0.50674266]
[1772808723231,9.45177519,84.38,84.333,0.50674266]
[1772808723632,8.51860971,84.412,84.333,0.50674266]
[1772808723850,9.60212249,84.445,84.333,0.50674266]
[1772808723851,11.85269471,84.369,84.334,11.85761377]
[1772808724147,11.85269471,84.369,84.33,11.85815046]
[1772808724346,9.45177519,84.36,84.33,11.85815046]
[1772808724849,4.82477569,84.396,84.33,11.85815046]
[1772808724850,0.28432314,84.373,84.331,0.50674266]
[1772808725227,11.85210453,84.374,84.331,0.50674266]
[1772808725629,9.45177519,84.36,84.325,11.85887026]
[1772808725836,9.45177519,84.36,84.24,11.77175859]
[1772808725837,9.45177519,84.35,84.306,0.50674266]
[1772808726032,0.28432314,84.357,84.31,0.60674266]
[1772808726334,11.85424026,84.358,84.31,0.60674266]
[1772808726543,9.45177519,84.35,84.31,0.60674266]
[1772808726739,41.48984091,84.358,84.31,0.60674266]
[1772808726951,9.45177519,84.33,84.31,0.1]
[1772808727149,9.45177519,84.33,84.285,41.52577563]
[1772808727150,9.45177519,84.32,84.285,11.86450732]
[1772808727330,41.48984091,84.358,84.286,0.50674266]
[1772808727331,9.45177519,84.35,84.286,0.50674266]
[1772808727532,0.28432314,84.349,84.286,0.50674266]
[1772808727928,9.45177519,84.34,84.288,0.50674266]
[1772808728464,9.45177519,84.33,84.288,0.50674266]
[1772808729138,9.45177519,84.32,84.276,0.50674266]
[1772808729341,0.14216157,84.339,84.255,11.86873182]
[1772808729342,9.45177519,84.3,84.255,11.86873182]
[1772808729538,9.45177519,84.3,84.256,0.50674266]
[1772808729733,0.28432314,84.299,84.256,0.50674266]
[1772808729941,59.30317899,84.313,84.256,0.50674266]
[1772808730256,0.28432314,84.299,84.256,0.50674266]
[1772808730455,9.45177519,84.3,84.256,0.50674266]
[1772808730646,0.28432314,84.309,84.256,0.50674266]
[1772808730846,9.45177519,84.3,84.256,0.50674266]
[1772808731050,9.45177519,84.29,84.255,11.86873182]
[1772808731234,9.45177519,84.31,84.256,0.50674266]
[1772808731639,0.28432314,84.309,84.256,0.50674266]
[1772808731936,11.86253692,84.299,84.258,0.50674266]
[1772808732134,9.45177519,84.29,84.254,6.53071815]
[1772808732334,9.45177519,84.29,84.255,11.86873182]
[1772808732534,9.45177519,84.28,84.254,6.53071815]
[1772808732956,0.28432314,84.298,84.256,0.50674266]
[1772808733157,11.86253692,84.299,84.256,0.50674266]
[1772808733358,9.45177519,84.29,84.254,6.53071815]
[1772808733560,0.28432314,84.298,84.256,0.50674266]
[1772808733866,59.29745818,84.321,84.256,0.50674266]
[1772808733867,9.45177519,84.32,84.256,0.50674266]
[1772808734062,41.50903117,84.319,84.258,0.50674266]
[1772808734271,9.45177519,84.33,84.258,0.50674266]
[1772808734847,0.28432314,84.329,84.258,0.50674266]
[1772808735043,9.45177519,84.33,84.26,3.69383402]
[1772808735368,9.45177519,84.35,84.262,0.50674266]
[1772808735545,11.85604296,84.346,84.262,0.50674266]
[1772808735754,9.45177519,84.36,84.262,0.50674266]
[1772808736087,4.82477569,84.383,84.262,0.50674266]
[1772808736376,9.45177519,84.34,84.262,0.50674266]
[1772808736580,9.45177519,84.33,84.262,0.50674266]
[1772808736772,9.45177519,84.32,84.262,0.50674266]
[1772808736996,9.45177519,84.28,84.249,0.50674266]
[1772808737485,9.45177519,84.3,84.251,0.50674266]
[1772808737858,9.45177519,84.29,84.239,0.50674266]
[1772808738174,9.45177519,84.3,84.251,0.50674266]
[1772808739471,9.45177519,84.33,84.251,0.50674266]
[1772808739873,9.45177519,84.32,84.251,0.50674266]
[1772808740183,9.45177519,84.33,84.251,0.50674266]
[1772808740384,9.45177519,84.31,84.251,0.50674266]
[1772808740885,9.45177519,84.3,84.251,0.50674266]
[1772808741377,9.45177519,84.29,84.251,0.50674266]
[1772808742166,0.28432314,84.316,84.24,0.60674266]
[1772808742167,9.45177519,84.28,84.24,0.60674266]
[1772808742379,0.28432314,84.286,84.24,0.1]
[1772808742578,9.45177519,84.26,84.24,0.1]
[1772808742974,9.45177519,84.25,84.24,0.1]
[1772808743178,0.14216157,84.276,84.24,0.1]
[1772808743384,0.14216157,84.269,84.24,0.1]
[1772808743592,9.45177519,84.26,84.24,0.1]
[1772808743990,9.45177519,84.25,84.195,0.50674266]
[1772808744287,9.45177519,84.24,84.195,0.50674266]
[1772808744492,9.45177519,84.23,84.195,0.50674266]